{"text_format":"1","workbook":"xlsx","n_sheets":4,"sheets":["Sheet1","Sheet1 (3)","Sheet2","Sheet3"],"not_rendered":{"charts":0,"images":22,"macros":1,"external_links":0,"defined_names":0,"comments":0,"pivot_tables":0},"unopened":[],"bounds":{"document_bytes":16777216,"sheet_cells":100000,"rows_first":2000,"rows_last":500,"rows_between":2000,"halvings":0,"cell_chars":16384,"cell_head_chars":4096},"cells_cut":0,"cells_raw":0,"read":"whole","date_system":"1900"}

{"sheet":"Sheet1","index":0,"n_rows":85,"n_cols":408,"rows_kept":85,"cut":false,"hidden":false,"merged":[[8,2,8,3],[5,4,5,10],[4,4,4,10],[15,4,15,10],[25,4,26,10],[14,4,14,10],[24,4,24,10],[11,400,11,406],[3,400,3,406],[5,400,5,407],[7,400,7,404],[9,400,9,406]]}
[]
[]
[]
[null,null,"Start by entering due date here in the dd/mm/yyyy format:","00/00/0000",null,null,null,null,null,null,null,null,null,null,null,null,null,null,null,null,null,null,null,null,null,null,null,null,null,null,null,null,null,null,null,null,null,null,null,null,null,null,null,null,null,null,null,null,null,null,null,null,null,null,null,null,null,null,null,null,null,null,null,null,null,null,null,null,null,null,null,null,null,null,null,null,null,null,null,null,null,null,null,null,null,null,null,null,null,null,null,null,null,null,null,null,null,null,null,null,null,null,null,null,null,null,null,null,null,null,null,null,null,null,null,null,null,null,null,null,null,null,null,null,null,null,null,null,null,null,null,null,null,null,null,null,null,null,null,null,null,null,null,null,null,null,null,null,null,null,null,null,null,null,null,null,null,null,null,null,null,null,null,null,null,null,null,null,null,null,null,null,null,null,null,null,null,null,null,null,null,null,null,null,null,null,null,null,null,null,null,null,null,null,null,null,null,null,null,null,null,null,null,null,null,null,null,null,null,null,null,null,null,null,null,null,null,null,null,null,null,null,null,null,null,null,null,null,null,null,null,null,null,null,null,null,null,null,null,null,null,null,null,null,null,null,null,null,null,null,null,null,null,null,null,null,null,null,null,null,null,null,null,null,null,null,null,null,null,null,null,null,null,null,null,null,null,null,null,null,null,null,null,null,null,null,null,null,null,null,null,null,null,null,null,null,null,null,null,null,null,null,null,null,null,null,null,null,null,null,null,null,null,null,null,null,null,null,null,null,null,null,null,null,null,null,null,null,null,null,null,null,null,null,null,null,null,null,null,null,null,null,null,null,null,null,null,null,null,null,null,null,null,null,null,null,null,null,null,null,null,null,null,null,null,null,null,null,null,null,null,null,null,null,null,null,null,null,null,null,null,null,null,null,null,null,null,null,null,null,null,null,null,null,null,null,null,null,null,null,"Maternity application form & guide "]
[null,null,null," ","Latest date maternity leave begins"]
[null,null,null,null,{"$f":"D43","v":{"$error":"#VALUE!"}},null,null,null,null,null,null,null,null,null,null,null,null,null,null,null,null,null,null,null,null,null,null,null,null,null,null,null,null,null,null,null,null,null,null,null,null,null,null,null,null,null,null,null,null,null,null,null,null,null,null,null,null,null,null,null,null,null,null,null,null,null,null,null,null,null,null,null,null,null,null,null,null,null,null,null,null,null,null,null,null,null,null,null,null,null,null,null,null,null,null,null,null,null,null,null,null,null,null,null,null,null,null,null,null,null,null,null,null,null,null,null,null,null,null,null,null,null,null,null,null,null,null,null,null,null,null,null,null,null,null,null,null,null,null,null,null,null,null,null,null,null,null,null,null,null,null,null,null,null,null,null,null,null,null,null,null,null,null,null,null,null,null,null,null,null,null,null,null,null,null,null,null,null,null,null,null,null,null,null,null,null,null,null,null,null,null,null,null,null,null,null,null,null,null,null,null,null,null,null,null,null,null,null,null,null,null,null,null,null,null,null,null,null,null,null,null,null,null,null,null,null,null,null,null,null,null,null,null,null,null,null,null,null,null,null,null,null,null,null,null,null,null,null,null,null,null,null,null,null,null,null,null,null,null,null,null,null,null,null,null,null,null,null,null,null,null,null,null,null,null,null,null,null,null,null,null,null,null,null,null,null,null,null,null,null,null,null,null,null,null,null,null,null,null,null,null,null,null,null,null,null,null,null,null,null,null,null,null,null,null,null,null,null,null,null,null,null,null,null,null,null,null,null,null,null,null,null,null,null,null,null,null,null,null,null,null,null,null,null,null,null,null,null,null,null,null,null,null,null,null,null,null,null,null,null,null,null,null,null,null,null,null,null,null,null,null,null,null,null,null,null,null,null,null,null,null,null,null,null,null,null,null,null,null,null,null,null,null,null,null,null,null,null,null,null,"PRSI arrangements on maternity leave"]
[null,null,null,null,"Sunday ","Monday ","Tuesday ","Wednesday ","Thursday ","Friday ","Saturday "]
[null,null,null,null,{"$f":"COLUMNS($E8:E8)+(ROWS(E$8:E8)-1)*7-$E$80+$E$79","v":{"$error":"#VALUE!"}},{"$f":"COLUMNS($E8:F8)+(ROWS(F$8:F8)-1)*7-$E$80+$E$79","v":{"$error":"#VALUE!"}},{"$f":"COLUMNS($E8:G8)+(ROWS(G$8:G8)-1)*7-$E$80+$E$79","v":{"$error":"#VALUE!"}},{"$f":"COLUMNS($E8:H8)+(ROWS(H$8:H8)-1)*7-$E$80+$E$79","v":{"$error":"#VALUE!"}},{"$f":"COLUMNS($E8:I8)+(ROWS(I$8:I8)-1)*7-$E$80+$E$79","v":{"$error":"#VALUE!"}},{"$f":"COLUMNS($E8:J8)+(ROWS(J$8:J8)-1)*7-$E$80+$E$79","v":{"$error":"#VALUE!"}},{"$f":"COLUMNS($E8:K8)+(ROWS(K$8:K8)-1)*7-$E$80+$E$79","v":{"$error":"#VALUE!"}},null,null,null,null,null,null,null,null,null,null,null,null,null,null,null,null,null,null,null,null,null,null,null,null,null,null,null,null,null,null,null,null,null,null,null,null,null,null,null,null,null,null,null,null,null,null,null,null,null,null,null,null,null,null,null,null,null,null,null,null,null,null,null,null,null,null,null,null,null,null,null,null,null,null,null,null,null,null,null,null,null,null,null,null,null,null,null,null,null,null,null,null,null,null,null,null,null,null,null,null,null,null,null,null,null,null,null,null,null,null,null,null,null,null,null,null,null,null,null,null,null,null,null,null,null,null,null,null,null,null,null,null,null,null,null,null,null,null,null,null,null,null,null,null,null,null,null,null,null,null,null,null,null,null,null,null,null,null,null,null,null,null,null,null,null,null,null,null,null,null,null,null,null,null,null,null,null,null,null,null,null,null,null,null,null,null,null,null,null,null,null,null,null,null,null,null,null,null,null,null,null,null,null,null,null,null,null,null,null,null,null,null,null,null,null,null,null,null,null,null,null,null,null,null,null,null,null,null,null,null,null,null,null,null,null,null,null,null,null,null,null,null,null,null,null,null,null,null,null,null,null,null,null,null,null,null,null,null,null,null,null,null,null,null,null,null,null,null,null,null,null,null,null,null,null,null,null,null,null,null,null,null,null,null,null,null,null,null,null,null,null,null,null,null,null,null,null,null,null,null,null,null,null,null,null,null,null,null,null,null,null,null,null,null,null,null,null,null,null,null,null,null,null,null,null,null,null,null,null,null,null,null,null,null,null,null,null,null,null,null,null,null,null,null,null,null,null,null,null,null,null,null,null,null,null,null,null,null,null,null,null,null,null,null,null,null,null,null,null,null,null,null,null,null,null,null,null,null,null,null,null,null,null,null,null,null,null,null,null,"Frequently asked questions"]
[null,null,null,null,{"$f":"COLUMNS($E9:E9)+(ROWS(E$8:E9)-1)*7-$E$80+$E$79","v":{"$error":"#VALUE!"}},{"$f":"COLUMNS($E9:F9)+(ROWS(F$8:F9)-1)*7-$E$80+$E$79","v":{"$error":"#VALUE!"}},{"$f":"COLUMNS($E9:G9)+(ROWS(G$8:G9)-1)*7-$E$80+$E$79","v":{"$error":"#VALUE!"}},{"$f":"COLUMNS($E9:H9)+(ROWS(H$8:H9)-1)*7-$E$80+$E$79","v":{"$error":"#VALUE!"}},{"$f":"COLUMNS($E9:I9)+(ROWS(I$8:I9)-1)*7-$E$80+$E$79","v":{"$error":"#VALUE!"}},{"$f":"COLUMNS($E9:J9)+(ROWS(J$8:J9)-1)*7-$E$80+$E$79","v":{"$error":"#VALUE!"}},{"$f":"COLUMNS($E9:K9)+(ROWS(K$8:K9)-1)*7-$E$80+$E$79","v":{"$error":"#VALUE!"}}]
[null,null,null,null,{"$f":"COLUMNS($E10:E10)+(ROWS(E$8:E10)-1)*7-$E$80+$E$79","v":{"$error":"#VALUE!"}},{"$f":"COLUMNS($E10:F10)+(ROWS(F$8:F10)-1)*7-$E$80+$E$79","v":{"$error":"#VALUE!"}},{"$f":"COLUMNS($E10:G10)+(ROWS(G$8:G10)-1)*7-$E$80+$E$79","v":{"$error":"#VALUE!"}},{"$f":"COLUMNS($E10:H10)+(ROWS(H$8:H10)-1)*7-$E$80+$E$79","v":{"$error":"#VALUE!"}},{"$f":"COLUMNS($E10:I10)+(ROWS(I$8:I10)-1)*7-$E$80+$E$79","v":{"$error":"#VALUE!"}},{"$f":"COLUMNS($E10:J10)+(ROWS(J$8:J10)-1)*7-$E$80+$E$79","v":{"$error":"#VALUE!"}},{"$f":"COLUMNS($E10:K10)+(ROWS(K$8:K10)-1)*7-$E$80+$E$79","v":{"$error":"#VALUE!"}},null,null,null,null,null,null,null,null,null,null,null,null,null,null,null,null,null,null,null,null,null,null,null,null,null,null,null,null,null,null,null,null,null,null,null,null,null,null,null,null,null,null,null,null,null,null,null,null,null,null,null,null,null,null,null,null,null,null,null,null,null,null,null,null,null,null,null,null,null,null,null,null,null,null,null,null,null,null,null,null,null,null,null,null,null,null,null,null,null,null,null,null,null,null,null,null,null,null,null,null,null,null,null,null,null,null,null,null,null,null,null,null,null,null,null,null,null,null,null,null,null,null,null,null,null,null,null,null,null,null,null,null,null,null,null,null,null,null,null,null,null,null,null,null,null,null,null,null,null,null,null,null,null,null,null,null,null,null,null,null,null,null,null,null,null,null,null,null,null,null,null,null,null,null,null,null,null,null,null,null,null,null,null,null,null,null,null,null,null,null,null,null,null,null,null,null,null,null,null,null,null,null,null,null,null,null,null,null,null,null,null,null,null,null,null,null,null,null,null,null,null,null,null,null,null,null,null,null,null,null,null,null,null,null,null,null,null,null,null,null,null,null,null,null,null,null,null,null,null,null,null,null,null,null,null,null,null,null,null,null,null,null,null,null,null,null,null,null,null,null,null,null,null,null,null,null,null,null,null,null,null,null,null,null,null,null,null,null,null,null,null,null,null,null,null,null,null,null,null,null,null,null,null,null,null,null,null,null,null,null,null,null,null,null,null,null,null,null,null,null,null,null,null,null,null,null,null,null,null,null,null,null,null,null,null,null,null,null,null,null,null,null,null,null,null,null,null,null,null,null,null,null,null,null,null,null,null,null,null,null,null,null,null,null,null,null,null,null,null,null,null,null,null,null,null,null,null,null,null,null,null,null,null,null,null,null,null,null,null,"Unpaid maternity leave & tax credits "]
[null,null,null,null,{"$f":"COLUMNS($E11:E11)+(ROWS(E$8:E11)-1)*7-$E$80+$E$79","v":{"$error":"#VALUE!"}},{"$f":"COLUMNS($E11:F11)+(ROWS(F$8:F11)-1)*7-$E$80+$E$79","v":{"$error":"#VALUE!"}},{"$f":"COLUMNS($E11:G11)+(ROWS(G$8:G11)-1)*7-$E$80+$E$79","v":{"$error":"#VALUE!"}},{"$f":"COLUMNS($E11:H11)+(ROWS(H$8:H11)-1)*7-$E$80+$E$79","v":{"$error":"#VALUE!"}},{"$f":"COLUMNS($E11:I11)+(ROWS(I$8:I11)-1)*7-$E$80+$E$79","v":{"$error":"#VALUE!"}},{"$f":"COLUMNS($E11:J11)+(ROWS(J$8:J11)-1)*7-$E$80+$E$79","v":{"$error":"#VALUE!"}},{"$f":"COLUMNS($E11:K11)+(ROWS(K$8:K11)-1)*7-$E$80+$E$79","v":{"$error":"#VALUE!"}}]
[null,null,null,null,{"$f":"COLUMNS($E12:E12)+(ROWS(E$8:E12)-1)*7-$E$80+$E$79","v":{"$error":"#VALUE!"}},{"$f":"COLUMNS($E12:F12)+(ROWS(F$8:F12)-1)*7-$E$80+$E$79","v":{"$error":"#VALUE!"}},{"$f":"COLUMNS($E12:G12)+(ROWS(G$8:G12)-1)*7-$E$80+$E$79","v":{"$error":"#VALUE!"}},{"$f":"COLUMNS($E12:H12)+(ROWS(H$8:H12)-1)*7-$E$80+$E$79","v":{"$error":"#VALUE!"}},{"$f":"COLUMNS($E12:I12)+(ROWS(I$8:I12)-1)*7-$E$80+$E$79","v":{"$error":"#VALUE!"}},{"$f":"COLUMNS($E12:J12)+(ROWS(J$8:J12)-1)*7-$E$80+$E$79","v":{"$error":"#VALUE!"}},{"$f":"COLUMNS($E12:K12)+(ROWS(K$8:K12)-1)*7-$E$80+$E$79","v":{"$error":"#VALUE!"}},null,null,null,null,null,null,null,null,null,null,null,null,null,null,null,null,null,null,null,null,null,null,null,null,null,null,null,null,null,null,null,null,null,null,null,null,null,null,null,null,null,null,null,null,null,null,null,null,null,null,null,null,null,null,null,null,null,null,null,null,null,null,null,null,null,null,null,null,null,null,null,null,null,null,null,null,null,null,null,null,null,null,null,null,null,null,null,null,null,null,null,null,null,null,null,null,null,null,null,null,null,null,null,null,null,null,null,null,null,null,null,null,null,null,null,null,null,null,null,null,null,null,null,null,null,null,null,null,null,null,null,null,null,null,null,null,null,null,null,null,null,null,null,null,null,null,null,null,null,null,null,null,null,null,null,null,null,null,null,null,null,null,null,null,null,null,null,null,null,null,null,null,null,null,null,null,null,null,null,null,null,null,null,null,null,null,null,null,null,null,null,null,null,null,null,null,null,null,null,null,null,null,null,null,null,null,null,null,null,null,null,null,null,null,null,null,null,null,null,null,null,null,null,null,null,null,null,null,null,null,null,null,null,null,null,null,null,null,null,null,null,null,null,null,null,null,null,null,null,null,null,null,null,null,null,null,null,null,null,null,null,null,null,null,null,null,null,null,null,null,null,null,null,null,null,null,null,null,null,null,null,null,null,null,null,null,null,null,null,null,null,null,null,null,null,null,null,null,null,null,null,null,null,null,null,null,null,null,null,null,null,null,null,null,null,null,null,null,null,null,null,null,null,null,null,null,null,null,null,null,null,null,null,null,null,null,null,null,null,null,null,null,null,null,null,null,null,null,null,null,null,null,null,null,null,null,null,null,null,null,null,null,null,null,null,null,null,null,null,null,null,null,null,null,null,null,null,null,null,null,null,null,null,null,null,null,null,null,null,"Maternity Leave Circular 0009/2013"]
[null,null,null,null,{"$f":"COLUMNS($E13:E13)+(ROWS(E$8:E13)-1)*7-$E$80+$E$79","v":{"$error":"#VALUE!"}},{"$f":"COLUMNS($E13:F13)+(ROWS(F$8:F13)-1)*7-$E$80+$E$79","v":{"$error":"#VALUE!"}},{"$f":"COLUMNS($E13:G13)+(ROWS(G$8:G13)-1)*7-$E$80+$E$79","v":{"$error":"#VALUE!"}},{"$f":"COLUMNS($E13:H13)+(ROWS(H$8:H13)-1)*7-$E$80+$E$79","v":{"$error":"#VALUE!"}},{"$f":"COLUMNS($E13:I13)+(ROWS(I$8:I13)-1)*7-$E$80+$E$79","v":{"$error":"#VALUE!"}},{"$f":"COLUMNS($E13:J13)+(ROWS(J$8:J13)-1)*7-$E$80+$E$79","v":{"$error":"#VALUE!"}},{"$f":"COLUMNS($E13:K13)+(ROWS(K$8:K13)-1)*7-$E$80+$E$79","v":{"$error":"#VALUE!"}},null,null,null,null,null,null,null,null,null,null,null,null,null,null,null,null,null,null,null,null,null,null,null,null,null,null,null,null,null,null,null,null,null,null,null,null,null,null,null,null,null,null,null,null,null,null,null,null,null,null,null,null,null,null,null,null,null,null,null,null,null,null,null,null,null,null,null,null,null,null,null,null,null,null,null,null,null,null,null,null,null,null,null,null,null,null,null,null,null,null,null,null,null,null,null,null,null,null,null,null,null,null,null,null,null,null,null,null,null,null,null,null,null,null,null,null,null,null,null,null,null,null,null,null,null,null,null,null,null,null,null,null,null,null,null,null,null,null,null,null,null,null,null,null,null,null,null,null,null,null,null,null,null,null,null,null,null,null,null,null,null,null,null,null,null,null,null,null,null,null,null,null,null,null,null,null,null,null,null,null,null,null,null,null,null,null,null,null,null,null,null,null,null,null,null,null,null,null,null,null,null,null,null,null,null,null,null,null,null,null,null,null,null,null,null,null,null,null,null,null,null,null,null,null,null,null,null,null,null,null,null,null,null,null,null,null,null,null,null,null,null,null,null,null,null,null,null,null,null,null,null,null,null,null,null,null,null,null,null,null,null,null,null,null,null,null,null,null,null,null,null,null,null,null,null,null,null,null,null,null,null,null,null,null,null,null,null,null,null,null,null,null,null,null,null,null,null,null,null,null,null,null,null,null,null,null,null,null,null,null,null,null,null,null,null,null,null,null,null,null,null,null,null,null,null,null,null,null,null,null,null,null,null,null,null,null,null,null,null,null,null,null,null,null,null,null,null,null,null,null,null,null,null,null,null,null,null,null,null,null,null,null,null,null,null,null,null,null,null,null,null,null,null,null,null,null,null,null,null,null,null,null,null,null,null,null,null,null,null,null,null,null,null,null,null,null," "]
[]
[null,null,null,{"$f":"(D43+181)","v":{"$error":"#VALUE!"}},"Latest date maternity leave ends"]
[null,null,null,null,{"$f":"Y31","v":{"$error":"#VALUE!"}}]
[null,null,null,null,"Sunday ","Monday ","Tuesday ","Wednesday ","Thursday ","Friday ","Saturday"]
[null,null,null,null,{"$f":"COLUMNS($E18:E18)+(ROWS(E$18:E18)-1)*7-$Y$32+$Y$31","v":{"$error":"#VALUE!"}},{"$f":"COLUMNS($E18:F18)+(ROWS(F$18:F18)-1)*7-$Y$32+$Y$31","v":{"$error":"#VALUE!"}},{"$f":"COLUMNS($E18:G18)+(ROWS(G$18:G18)-1)*7-$Y$32+$Y$31","v":{"$error":"#VALUE!"}},{"$f":"COLUMNS($E18:H18)+(ROWS(H$18:H18)-1)*7-$Y$32+$Y$31","v":{"$error":"#VALUE!"}},{"$f":"COLUMNS($E18:I18)+(ROWS(I$18:I18)-1)*7-$Y$32+$Y$31","v":{"$error":"#VALUE!"}},{"$f":"COLUMNS($E18:J18)+(ROWS(J$18:J18)-1)*7-$Y$32+$Y$31","v":{"$error":"#VALUE!"}},{"$f":"COLUMNS($E18:K18)+(ROWS(K$18:K18)-1)*7-$Y$32+$Y$31","v":{"$error":"#VALUE!"}}]
[null,null,null,null,{"$f":"COLUMNS($E19:E19)+(ROWS(E$18:E19)-1)*7-$Y$32+$Y$31","v":{"$error":"#VALUE!"}},{"$f":"COLUMNS($E19:F19)+(ROWS(F$18:F19)-1)*7-$Y$32+$Y$31","v":{"$error":"#VALUE!"}},{"$f":"COLUMNS($E19:G19)+(ROWS(G$18:G19)-1)*7-$Y$32+$Y$31","v":{"$error":"#VALUE!"}},{"$f":"COLUMNS($E19:H19)+(ROWS(H$18:H19)-1)*7-$Y$32+$Y$31","v":{"$error":"#VALUE!"}},{"$f":"COLUMNS($E19:I19)+(ROWS(I$18:I19)-1)*7-$Y$32+$Y$31","v":{"$error":"#VALUE!"}},{"$f":"COLUMNS($E19:J19)+(ROWS(J$18:J19)-1)*7-$Y$32+$Y$31","v":{"$error":"#VALUE!"}},{"$f":"COLUMNS($E19:K19)+(ROWS(K$18:K19)-1)*7-$Y$32+$Y$31","v":{"$error":"#VALUE!"}}]
[null,null,null,null,{"$f":"COLUMNS($E20:E20)+(ROWS(E$18:E20)-1)*7-$Y$32+$Y$31","v":{"$error":"#VALUE!"}},{"$f":"COLUMNS($E20:F20)+(ROWS(F$18:F20)-1)*7-$Y$32+$Y$31","v":{"$error":"#VALUE!"}},{"$f":"COLUMNS($E20:G20)+(ROWS(G$18:G20)-1)*7-$Y$32+$Y$31","v":{"$error":"#VALUE!"}},{"$f":"COLUMNS($E20:H20)+(ROWS(H$18:H20)-1)*7-$Y$32+$Y$31","v":{"$error":"#VALUE!"}},{"$f":"COLUMNS($E20:I20)+(ROWS(I$18:I20)-1)*7-$Y$32+$Y$31","v":{"$error":"#VALUE!"}},{"$f":"COLUMNS($E20:J20)+(ROWS(J$18:J20)-1)*7-$Y$32+$Y$31","v":{"$error":"#VALUE!"}},{"$f":"COLUMNS($E20:K20)+(ROWS(K$18:K20)-1)*7-$Y$32+$Y$31","v":{"$error":"#VALUE!"}}]
[null,null,null,null,{"$f":"COLUMNS($E21:E21)+(ROWS(E$18:E21)-1)*7-$Y$32+$Y$31","v":{"$error":"#VALUE!"}},{"$f":"COLUMNS($E21:F21)+(ROWS(F$18:F21)-1)*7-$Y$32+$Y$31","v":{"$error":"#VALUE!"}},{"$f":"COLUMNS($E21:G21)+(ROWS(G$18:G21)-1)*7-$Y$32+$Y$31","v":{"$error":"#VALUE!"}},{"$f":"COLUMNS($E21:H21)+(ROWS(H$18:H21)-1)*7-$Y$32+$Y$31","v":{"$error":"#VALUE!"}},{"$f":"COLUMNS($E21:I21)+(ROWS(I$18:I21)-1)*7-$Y$32+$Y$31","v":{"$error":"#VALUE!"}},{"$f":"COLUMNS($E21:J21)+(ROWS(J$18:J21)-1)*7-$Y$32+$Y$31","v":{"$error":"#VALUE!"}},{"$f":"COLUMNS($E21:K21)+(ROWS(K$18:K21)-1)*7-$Y$32+$Y$31","v":{"$error":"#VALUE!"}}]
[null,null,null,null,{"$f":"COLUMNS($E22:E22)+(ROWS(E$18:E22)-1)*7-$Y$32+$Y$31","v":{"$error":"#VALUE!"}},{"$f":"COLUMNS($E22:F22)+(ROWS(F$18:F22)-1)*7-$Y$32+$Y$31","v":{"$error":"#VALUE!"}},{"$f":"COLUMNS($E22:G22)+(ROWS(G$18:G22)-1)*7-$Y$32+$Y$31","v":{"$error":"#VALUE!"}},{"$f":"COLUMNS($E22:H22)+(ROWS(H$18:H22)-1)*7-$Y$32+$Y$31","v":{"$error":"#VALUE!"}},{"$f":"COLUMNS($E22:I22)+(ROWS(I$18:I22)-1)*7-$Y$32+$Y$31","v":{"$error":"#VALUE!"}},{"$f":"COLUMNS($E22:J22)+(ROWS(J$18:J22)-1)*7-$Y$32+$Y$31","v":{"$error":"#VALUE!"}},{"$f":"COLUMNS($E22:K22)+(ROWS(K$18:K22)-1)*7-$Y$32+$Y$31","v":{"$error":"#VALUE!"}}]
[null,null,null,null,{"$f":"COLUMNS($E23:E23)+(ROWS(E$18:E23)-1)*7-$Y$32+$Y$31","v":{"$error":"#VALUE!"}},{"$f":"COLUMNS($E23:F23)+(ROWS(F$18:F23)-1)*7-$Y$32+$Y$31","v":{"$error":"#VALUE!"}},{"$f":"COLUMNS($E23:G23)+(ROWS(G$18:G23)-1)*7-$Y$32+$Y$31","v":{"$error":"#VALUE!"}},{"$f":"COLUMNS($E23:H23)+(ROWS(H$18:H23)-1)*7-$Y$32+$Y$31","v":{"$error":"#VALUE!"}},{"$f":"COLUMNS($E23:I23)+(ROWS(I$18:I23)-1)*7-$Y$32+$Y$31","v":{"$error":"#VALUE!"}},{"$f":"COLUMNS($E23:J23)+(ROWS(J$18:J23)-1)*7-$Y$32+$Y$31","v":{"$error":"#VALUE!"}},{"$f":"COLUMNS($E23:K23)+(ROWS(K$18:K23)-1)*7-$Y$32+$Y$31","v":{"$error":"#VALUE!"}}]
[]
[null,null,null,{"$f":"(D15+112)","v":{"$error":"#VALUE!"}},"Latest date statutory unpaid maternity leave ends*"]
[null,null,null,null,{"$f":"(D25)","v":{"$error":"#VALUE!"}}]
[]
[null,null,null,null,"Sunday ","Monday ","Tuesday ","Wednesday ","Thursday ","Friday ","Saturday "]
[null,null,null,null,{"$f":"COLUMNS($E29:E29)+(ROWS(E$29:E29)-1)*7-$C$41+$C$40","v":{"$error":"#VALUE!"}},{"$f":"COLUMNS($E29:F29)+(ROWS(F$29:F29)-1)*7-$C$41+$C$40","v":{"$error":"#VALUE!"}},{"$f":"COLUMNS($E29:G29)+(ROWS(G$29:G29)-1)*7-$C$41+$C$40","v":{"$error":"#VALUE!"}},{"$f":"COLUMNS($E29:H29)+(ROWS(H$29:H29)-1)*7-$C$41+$C$40","v":{"$error":"#VALUE!"}},{"$f":"COLUMNS($E29:I29)+(ROWS(I$29:I29)-1)*7-$C$41+$C$40","v":{"$error":"#VALUE!"}},{"$f":"COLUMNS($E29:J29)+(ROWS(J$29:J29)-1)*7-$C$41+$C$40","v":{"$error":"#VALUE!"}},{"$f":"COLUMNS($E29:K29)+(ROWS(K$29:K29)-1)*7-$C$41+$C$40","v":{"$error":"#VALUE!"}}]
[null,null,null,null,{"$f":"COLUMNS($E30:E30)+(ROWS(E$29:E30)-1)*7-$C$41+$C$40","v":{"$error":"#VALUE!"}},{"$f":"COLUMNS($E30:F30)+(ROWS(F$29:F30)-1)*7-$C$41+$C$40","v":{"$error":"#VALUE!"}},{"$f":"COLUMNS($E30:G30)+(ROWS(G$29:G30)-1)*7-$C$41+$C$40","v":{"$error":"#VALUE!"}},{"$f":"COLUMNS($E30:H30)+(ROWS(H$29:H30)-1)*7-$C$41+$C$40","v":{"$error":"#VALUE!"}},{"$f":"COLUMNS($E30:I30)+(ROWS(I$29:I30)-1)*7-$C$41+$C$40","v":{"$error":"#VALUE!"}},{"$f":"COLUMNS($E30:J30)+(ROWS(J$29:J30)-1)*7-$C$41+$C$40","v":{"$error":"#VALUE!"}},{"$f":"COLUMNS($E30:K30)+(ROWS(K$29:K30)-1)*7-$C$41+$C$40","v":{"$error":"#VALUE!"}},null,null,null,null,null,null,null,null,null,null,null,null,"Date",{"$f":"(D15)","v":{"$error":"#VALUE!"}}]
[null,null,null,null,{"$f":"COLUMNS($E31:E31)+(ROWS(E$29:E31)-1)*7-$C$41+$C$40","v":{"$error":"#VALUE!"}},{"$f":"COLUMNS($E31:F31)+(ROWS(F$29:F31)-1)*7-$C$41+$C$40","v":{"$error":"#VALUE!"}},{"$f":"COLUMNS($E31:G31)+(ROWS(G$29:G31)-1)*7-$C$41+$C$40","v":{"$error":"#VALUE!"}},{"$f":"COLUMNS($E31:H31)+(ROWS(H$29:H31)-1)*7-$C$41+$C$40","v":{"$error":"#VALUE!"}},{"$f":"COLUMNS($E31:I31)+(ROWS(I$29:I31)-1)*7-$C$41+$C$40","v":{"$error":"#VALUE!"}},{"$f":"COLUMNS($E31:J31)+(ROWS(J$29:J31)-1)*7-$C$41+$C$40","v":{"$error":"#VALUE!"}},{"$f":"COLUMNS($E31:K31)+(ROWS(K$29:K31)-1)*7-$C$41+$C$40","v":{"$error":"#VALUE!"}},null,null,null,null,null,null,null,null,null,null,null,null,"First ",{"$f":"EOMONTH(Y30,-1)+1","v":{"$error":"#VALUE!"}}]
[null,null,null,null,{"$f":"COLUMNS($E32:E32)+(ROWS(E$29:E32)-1)*7-$C$41+$C$40","v":{"$error":"#VALUE!"}},{"$f":"COLUMNS($E32:F32)+(ROWS(F$29:F32)-1)*7-$C$41+$C$40","v":{"$error":"#VALUE!"}},{"$f":"COLUMNS($E32:G32)+(ROWS(G$29:G32)-1)*7-$C$41+$C$40","v":{"$error":"#VALUE!"}},{"$f":"COLUMNS($E32:H32)+(ROWS(H$29:H32)-1)*7-$C$41+$C$40","v":{"$error":"#VALUE!"}},{"$f":"COLUMNS($E32:I32)+(ROWS(I$29:I32)-1)*7-$C$41+$C$40","v":{"$error":"#VALUE!"}},{"$f":"COLUMNS($E32:J32)+(ROWS(J$29:J32)-1)*7-$C$41+$C$40","v":{"$error":"#VALUE!"}},{"$f":"COLUMNS($E32:K32)+(ROWS(K$29:K32)-1)*7-$C$41+$C$40","v":{"$error":"#VALUE!"}},null,null,null,null,null,null,null,null,null,null,null,null,"Weekday of first",{"$f":"WEEKDAY(Y31)","v":{"$error":"#VALUE!"}}]
[null,null,null,null,{"$f":"COLUMNS($E33:E33)+(ROWS(E$29:E33)-1)*7-$C$41+$C$40","v":{"$error":"#VALUE!"}},{"$f":"COLUMNS($E33:F33)+(ROWS(F$29:F33)-1)*7-$C$41+$C$40","v":{"$error":"#VALUE!"}},{"$f":"COLUMNS($E33:G33)+(ROWS(G$29:G33)-1)*7-$C$41+$C$40","v":{"$error":"#VALUE!"}},{"$f":"COLUMNS($E33:H33)+(ROWS(H$29:H33)-1)*7-$C$41+$C$40","v":{"$error":"#VALUE!"}},{"$f":"COLUMNS($E33:I33)+(ROWS(I$29:I33)-1)*7-$C$41+$C$40","v":{"$error":"#VALUE!"}},{"$f":"COLUMNS($E33:J33)+(ROWS(J$29:J33)-1)*7-$C$41+$C$40","v":{"$error":"#VALUE!"}},{"$f":"COLUMNS($E33:K33)+(ROWS(K$29:K33)-1)*7-$C$41+$C$40","v":{"$error":"#VALUE!"}},null,null,null,null,null,null,null,null,null,null,null,null,"month",{"$f":"MONTH(Y31)","v":{"$error":"#VALUE!"}}]
[null,null,null,null,{"$f":"COLUMNS($E34:E34)+(ROWS(E$29:E34)-1)*7-$C$41+$C$40","v":{"$error":"#VALUE!"}},{"$f":"COLUMNS($E34:F34)+(ROWS(F$29:F34)-1)*7-$C$41+$C$40","v":{"$error":"#VALUE!"}},{"$f":"COLUMNS($E34:G34)+(ROWS(G$29:G34)-1)*7-$C$41+$C$40","v":{"$error":"#VALUE!"}},{"$f":"COLUMNS($E34:H34)+(ROWS(H$29:H34)-1)*7-$C$41+$C$40","v":{"$error":"#VALUE!"}},{"$f":"COLUMNS($E34:I34)+(ROWS(I$29:I34)-1)*7-$C$41+$C$40","v":{"$error":"#VALUE!"}},{"$f":"COLUMNS($E34:J34)+(ROWS(J$29:J34)-1)*7-$C$41+$C$40","v":{"$error":"#VALUE!"}},{"$f":"COLUMNS($E34:K34)+(ROWS(K$29:K34)-1)*7-$C$41+$C$40","v":{"$error":"#VALUE!"}}]
[null,null,"    *Optional unpaid leave of up to 112 days taken after maternity leave."]
[]
[]
[]
[null,"date","2012-02-02"]
[null,"First ",{"$f":"EOMONTH(D25,-1)+1","v":{"$error":"#VALUE!"}}]
[null,"Weekday",{"$f":"WEEKDAY(C40)","v":{"$error":"#VALUE!"}}]
[null,"month",{"$f":"MONTH(C40)","v":{"$error":"#VALUE!"}}]
[null,null,null,{"$f":"IF(WEEKDAY(D4)=1,D4-6,IF(WEEKDAY(D4)=2,D4-7,IF(WEEKDAY(D4)=3,D4-8,IF(WEEKDAY(D4)=4,D4-9,IF(WEEKDAY(D4)=5,D4-10,IF(WEEKDAY(D4)=6,D4-11,IF(WEEKDAY(D4)=7,D4-12,\"Help\")))))))","v":{"$error":"#VALUE!"}}]
[null,null,null,null,null,null,null,"DATE","2015-04-03"]
[null,null,null,null,null,null,null,"FIRST",{"$f":"EOMONTH(I44,-1)+1","v":"2015-04-01"}]
[null,null,null,null,null,null,null,"WEEKDAY",{"$f":"WEEKDAY(I45)","v":4}]
[null,null,null,null,null,null,null,"MONTH",{"$f":"MONTH(I44)","v":4}]
[]
[]
[]
[]
[]
[]
[]
[]
[]
[]
[]
[]
[]
[]
[]
[]
[]
[]
[]
[]
[]
[]
[]
[]
[]
[]
[]
[null,null,null,null,null,null,null,null,null,null,null,null,null,null,null,null,null,null,null,null,null,null,null,null,null,null,null,null,null,null,null,null,null,null,null,null,null,null,null,null,null,null,null,null,null,null,null,null,null,null,null,null,null,null,null,null,null,null,null,null,null,null,null,null,null,null,null,null,null,null,null,null,null,null,null,null,null,null,null,null,null,null,null,null,null,null,null,null,null,null,null,null,null,null,null,null,null,null,null,null,null,null,null,null,null,null,null,null,null,null,null,null,null,null,null,null,null,null,null,null,null,null,null,null,null,null,null,null,null,null,null,null,null,null,null,null,null,null,null,null,null,null,null,null,null,null,null,null,null,null,null,null,null,null,null,null,null,null,null,null,null,null,null,null,null,null,null,null,null,null,null,null,null,null,null,null,null,null,null,null,null,null,null,null,null,null,null,null,null,null,null,null,null,null,null,null,null,null,null,null,null,null,null,null,null,null,null,null,null,null,null,null,null,null,null,null,null,null,null,null,null,null,null,null,null,null,null,null,null,null,null,null,null,null,null,null,null,null,null,null,null,null,null,null,null,null,null,null,null,null,null,null,null,null,null,null,null,null,null,null,null,null,null,null,null,null,null,null,null,null,null,null,null,null,null,null,null,null,null,null,null,null,null,null,null,null,null,null,null,null,null,null,null,null,null,null,null,null,null,null,null,null,null,null,null,null,null,null,null,null,null,null,null,null,null,null,null,null,null,null,null,null,null,null,null,null,null,null,null,null,null,null,null,null,null,null,null,null,null,null,null,null,null,null,null,null,null,null,null,null,null,null,null,null,null,null,null,null,null,null,null,null,null,null,null,null,null,null,null,null,null,null,null,null,null,null,null,null,null,null,null,null,null,null,null,null,null,null,null,null,null,null,null,null,null,null,null,null,null,null,null,{"$f":"(ADX88+181)","v":"1900-06-29"}]
[]
[]
[null,null,null,"date ","2015-01-18"]
[null,null,null,"first ",{"$f":"EOMONTH(D43,-1)+1","v":{"$error":"#VALUE!"}}]
[null,null,null,"weekday first ",{"$f":"WEEKDAY(E79)","v":{"$error":"#VALUE!"}},"month ",{"$f":"MONTH(D43)","v":{"$error":"#VALUE!"}}]
[]
[]
[]
[]
[null,null,null,null,null,null,null,null,null,null,null,null,null,null,null,null,null,null,null,null,null,null,null,null,null,null,null,null,null,null,null,null,null,null,null,null,null,null,null,null,null,null,null,null,null,null,null,null,null,null,null,null,null,null,null,null,null,null,null,null,null,null,null,null,null,null,null,null,null,null,null,null,null,null,null,null,null,null,null,null,null,null,null,null,null,null,null,null,null,null,null,null,null,null,null,null,null,null,null,null,null,null,null,null,null,null,null,null,null,null,null,null,null,null,null,null,null,null,null,null,null,null,null,null,null,null,null,null,null,null,null,null,null,null,null,null,null,null,null,null,null,null,null,null,null,null,null,null,null,null,null,null,null,null,null,null,null,null,null,null,null,null,null,null,null,null,null,null,null,null,null,null,null,null,null,null,null,null,null,null,null,null,null,null,null,null,null,null,null,null,null,null,null,null,null,null,null,null,null,null,null,null,null,null,null,null,null,null,null,null,null,null,null,null,null,null,null,null,null,null,null,null,null,null,null,null,null,null,null,null,null,null,null,null,null,null,null,null,null,null,null,null,null,null,null,null,null,null,null,null,null,null,null,null,null,null,null,null,null,null,null,null,null,null,null,null,null,null,null,null,null,null,null,null,null,null,null,null,null,null,null,null,null,null,null,null,null,null,null,null,null,null,null,null,null,null,null,null,null,null,null,null,null,null,null,null,null,null,null,null,null,null,null,null,null,null,null,null,null,null,null,null,null,null,null,null,null,null,null,null,null,null,null,null,null,null,null,null,null,null,null,null,null,null,null,null,null,null,null,null,null,null,null,null,null,null,null,null,null,null,null,null,null,null,null,null,null,null,null,null,null,null,null,null,null,null,null,null,null,null,null,null,null,null,null,null,null,null,null,null,null,null,null,null,null,null,null,null,null,null,null,{"$f":"(OL75+112)","v":"1900-10-19"}]

{"sheet":"Sheet1 (3)","index":1,"n_rows":15,"n_cols":11,"rows_kept":15,"cut":false,"hidden":true,"merged":[[7,4,7,10]]}
[]
[]
["Date","2015-12-12"]
["First ",{"$f":"EOMONTH(B3,-1)+1","v":"2015-12-01"}]
["Weekday of first",{"$f":"WEEKDAY(B4)","v":3}]
["month",{"$f":"MONTH(B4)","v":12}]
[]
[null,null,null,null,{"$f":"B4","v":"2015-12-01"}]
[null,null,null,null,"Sunday ","Monday ","Tuesday ","Wednesday ","Thursday ","Friday ","Saturday"]
[null,null,null,null,{"$f":"COLUMNS($E10:E10)+(ROWS(E$10:E10)-1)*7-$B$5+$B$4","v":"2015-11-29"},{"$f":"COLUMNS($E10:F10)+(ROWS(F$10:F10)-1)*7-$B$5+$B$4","v":"2015-11-30"},{"$f":"COLUMNS($E10:G10)+(ROWS(G$10:G10)-1)*7-$B$5+$B$4","v":"2015-12-01"},{"$f":"COLUMNS($E10:H10)+(ROWS(H$10:H10)-1)*7-$B$5+$B$4","v":"2015-12-02"},{"$f":"COLUMNS($E10:I10)+(ROWS(I$10:I10)-1)*7-$B$5+$B$4","v":"2015-12-03"},{"$f":"COLUMNS($E10:J10)+(ROWS(J$10:J10)-1)*7-$B$5+$B$4","v":"2015-12-04"},{"$f":"COLUMNS($E10:K10)+(ROWS(K$10:K10)-1)*7-$B$5+$B$4","v":"2015-12-05"}]
[null,null,null,null,{"$f":"COLUMNS($E11:E11)+(ROWS(E$10:E11)-1)*7-$B$5+$B$4","v":"2015-12-06"},{"$f":"COLUMNS($E11:F11)+(ROWS(F$10:F11)-1)*7-$B$5+$B$4","v":"2015-12-07"},{"$f":"COLUMNS($E11:G11)+(ROWS(G$10:G11)-1)*7-$B$5+$B$4","v":"2015-12-08"},{"$f":"COLUMNS($E11:H11)+(ROWS(H$10:H11)-1)*7-$B$5+$B$4","v":"2015-12-09"},{"$f":"COLUMNS($E11:I11)+(ROWS(I$10:I11)-1)*7-$B$5+$B$4","v":"2015-12-10"},{"$f":"COLUMNS($E11:J11)+(ROWS(J$10:J11)-1)*7-$B$5+$B$4","v":"2015-12-11"},{"$f":"COLUMNS($E11:K11)+(ROWS(K$10:K11)-1)*7-$B$5+$B$4","v":"2015-12-12"}]
[null,null,null,null,{"$f":"COLUMNS($E12:E12)+(ROWS(E$10:E12)-1)*7-$B$5+$B$4","v":"2015-12-13"},{"$f":"COLUMNS($E12:F12)+(ROWS(F$10:F12)-1)*7-$B$5+$B$4","v":"2015-12-14"},{"$f":"COLUMNS($E12:G12)+(ROWS(G$10:G12)-1)*7-$B$5+$B$4","v":"2015-12-15"},{"$f":"COLUMNS($E12:H12)+(ROWS(H$10:H12)-1)*7-$B$5+$B$4","v":"2015-12-16"},{"$f":"COLUMNS($E12:I12)+(ROWS(I$10:I12)-1)*7-$B$5+$B$4","v":"2015-12-17"},{"$f":"COLUMNS($E12:J12)+(ROWS(J$10:J12)-1)*7-$B$5+$B$4","v":"2015-12-18"},{"$f":"COLUMNS($E12:K12)+(ROWS(K$10:K12)-1)*7-$B$5+$B$4","v":"2015-12-19"}]
[null,null,null,null,{"$f":"COLUMNS($E13:E13)+(ROWS(E$10:E13)-1)*7-$B$5+$B$4","v":"2015-12-20"},{"$f":"COLUMNS($E13:F13)+(ROWS(F$10:F13)-1)*7-$B$5+$B$4","v":"2015-12-21"},{"$f":"COLUMNS($E13:G13)+(ROWS(G$10:G13)-1)*7-$B$5+$B$4","v":"2015-12-22"},{"$f":"COLUMNS($E13:H13)+(ROWS(H$10:H13)-1)*7-$B$5+$B$4","v":"2015-12-23"},{"$f":"COLUMNS($E13:I13)+(ROWS(I$10:I13)-1)*7-$B$5+$B$4","v":"2015-12-24"},{"$f":"COLUMNS($E13:J13)+(ROWS(J$10:J13)-1)*7-$B$5+$B$4","v":"2015-12-25"},{"$f":"COLUMNS($E13:K13)+(ROWS(K$10:K13)-1)*7-$B$5+$B$4","v":"2015-12-26"}]
[null,null,null,null,{"$f":"COLUMNS($E14:E14)+(ROWS(E$10:E14)-1)*7-$B$5+$B$4","v":"2015-12-27"},{"$f":"COLUMNS($E14:F14)+(ROWS(F$10:F14)-1)*7-$B$5+$B$4","v":"2015-12-28"},{"$f":"COLUMNS($E14:G14)+(ROWS(G$10:G14)-1)*7-$B$5+$B$4","v":"2015-12-29"},{"$f":"COLUMNS($E14:H14)+(ROWS(H$10:H14)-1)*7-$B$5+$B$4","v":"2015-12-30"},{"$f":"COLUMNS($E14:I14)+(ROWS(I$10:I14)-1)*7-$B$5+$B$4","v":"2015-12-31"},{"$f":"COLUMNS($E14:J14)+(ROWS(J$10:J14)-1)*7-$B$5+$B$4","v":"2016-01-01"},{"$f":"COLUMNS($E14:K14)+(ROWS(K$10:K14)-1)*7-$B$5+$B$4","v":"2016-01-02"}]
[null,null,null,null,{"$f":"COLUMNS($E15:E15)+(ROWS(E$10:E15)-1)*7-$B$5+$B$4","v":"2016-01-03"},{"$f":"COLUMNS($E15:F15)+(ROWS(F$10:F15)-1)*7-$B$5+$B$4","v":"2016-01-04"},{"$f":"COLUMNS($E15:G15)+(ROWS(G$10:G15)-1)*7-$B$5+$B$4","v":"2016-01-05"},{"$f":"COLUMNS($E15:H15)+(ROWS(H$10:H15)-1)*7-$B$5+$B$4","v":"2016-01-06"},{"$f":"COLUMNS($E15:I15)+(ROWS(I$10:I15)-1)*7-$B$5+$B$4","v":"2016-01-07"},{"$f":"COLUMNS($E15:J15)+(ROWS(J$10:J15)-1)*7-$B$5+$B$4","v":"2016-01-08"},{"$f":"COLUMNS($E15:K15)+(ROWS(K$10:K15)-1)*7-$B$5+$B$4","v":"2016-01-09"}]

{"sheet":"Sheet2","index":2,"n_rows":76,"n_cols":420,"rows_kept":76,"cut":false,"hidden":false,"merged":[[3,2,4,3],[3,4,4,4],[26,402,27,412],[3,401,3,408],[4,401,4,405],[15,404,15,411],[16,5,17,11],[5,5,5,11],[6,5,6,11],[15,5,15,11],[10,401,10,407],[8,401,8,407],[6,401,7,407]]}
[]
[]
[]
[null,null,"Enter a date you want your maternity leave to start here:",null,"00/00/0000",null,null,null,null,null,null,null,null,null,null,null,null,null,null,null,null,null,null,null,null,null,null,null,null,null,null,null,null,null,null,null,null,null,null,null,null,null,null,null,null,null,null,null,null,null,null,null,null,null,null,null,null,null,null,null,null,null,null,null,null,null,null,null,null,null,null,null,null,null,null,null,null,null,null,null,null,null,null,null,null,null,null,null,null,null,null,null,null,null,null,null,null,null,null,null,null,null,null,null,null,null,null,null,null,null,null,null,null,null,null,null,null,null,null,null,null,null,null,null,null,null,null,null,null,null,null,null,null,null,null,null,null,null,null,null,null,null,null,null,null,null,null,null,null,null,null,null,null,null,null,null,null,null,null,null,null,null,null,null,null,null,null,null,null,null,null,null,null,null,null,null,null,null,null,null,null,null,null,null,null,null,null,null,null,null,null,null,null,null,null,null,null,null,null,null,null,null,null,null,null,null,null,null,null,null,null,null,null,null,null,null,null,null,null,null,null,null,null,null,null,null,null,null,null,null,null,null,null,null,null,null,null,null,null,null,null,null,null,null,null,null,null,null,null,null,null,null,null,null,null,null,null,null,null,null,null,null,null,null,null,null,null,null,null,null,null,null,null,null,null,null,null,null,null,null,null,null,null,null,null,null,null,null,null,null,null,null,null,null,null,null,null,null,null,null,null,null,null,null,null,null,null,null,null,null,null,null,null,null,null,null,null,null,null,null,null,null,null,null,null,null,null,null,null,null,null,null,null,null,null,null,null,null,null,null,null,null,null,null,null,null,null,null,null,null,null,null,null,null,null,null,null,null,null,null,null,null,null,null,null,null,null,null,null,null,null,null,null,null,null,null,null,null,null,null,null,null,null,null,null,null,null,null,null,null,null,null,null,null,null,null,null,null,null,null,null,"Maternity application form & guide "]
[null,null,null,null,null,null,null,null,null,null,null,null,null,null,null,null,null,null,null,null,null,null,null,null,null,null,null,null,null,null,null,null,null,null,null,null,null,null,null,null,null,null,null,null,null,null,null,null,null,null,null,null,null,null,null,null,null,null,null,null,null,null,null,null,null,null,null,null,null,null,null,null,null,null,null,null,null,null,null,null,null,null,null,null,null,null,null,null,null,null,null,null,null,null,null,null,null,null,null,null,null,null,null,null,null,null,null,null,null,null,null,null,null,null,null,null,null,null,null,null,null,null,null,null,null,null,null,null,null,null,null,null,null,null,null,null,null,null,null,null,null,null,null,null,null,null,null,null,null,null,null,null,null,null,null,null,null,null,null,null,null,null,null,null,null,null,null,null,null,null,null,null,null,null,null,null,null,null,null,null,null,null,null,null,null,null,null,null,null,null,null,null,null,null,null,null,null,null,null,null,null,null,null,null,null,null,null,null,null,null,null,null,null,null,null,null,null,null,null,null,null,null,null,null,null,null,null,null,null,null,null,null,null,null,null,null,null,null,null,null,null,null,null,null,null,null,null,null,null,null,null,null,null,null,null,null,null,null,null,null,null,null,null,null,null,null,null,null,null,null,null,null,null,null,null,null,null,null,null,null,null,null,null,null,null,null,null,null,null,null,null,null,null,null,null,null,null,null,null,null,null,null,null,null,null,null,null,null,null,null,null,null,null,null,null,null,null,null,null,null,null,null,null,null,null,null,null,null,null,null,null,null,null,null,null,null,null,null,null,null,null,null,null,null,null,null,null,null,null,null,null,null,null,null,null,null,null,null,null,null,null,null,null,null,null,null,null,null,null,null,null,null,null,null,null,null,null,null,null,null,null,null,null,null,null,null,null,null,null,null,null,null,null,null,null,null,null,null,null,null,null,"PRSI arrangements on maternity leave"]
[null,null,null,null,{"$f":"(E4+181)","v":{"$error":"#VALUE!"}},"Date maternity leave ends"]
[null,null,null,null,null,{"$f":"Z22","v":{"$error":"#VALUE!"}},null,null,null,null,null,null,null,null,null,null,null,null,null,null,null,null,null,null,null,null,null,null,null,null,null,null,null,null,null,null,null,null,null,null,null,null,null,null,null,null,null,null,null,null,null,null,null,null,null,null,null,null,null,null,null,null,null,null,null,null,null,null,null,null,null,null,null,null,null,null,null,null,null,null,null,null,null,null,null,null,null,null,null,null,null,null,null,null,null,null,null,null,null,null,null,null,null,null,null,null,null,null,null,null,null,null,null,null,null,null,null,null,null,null,null,null,null,null,null,null,null,null,null,null,null,null,null,null,null,null,null,null,null,null,null,null,null,null,null,null,null,null,null,null,null,null,null,null,null,null,null,null,null,null,null,null,null,null,null,null,null,null,null,null,null,null,null,null,null,null,null,null,null,null,null,null,null,null,null,null,null,null,null,null,null,null,null,null,null,null,null,null,null,null,null,null,null,null,null,null,null,null,null,null,null,null,null,null,null,null,null,null,null,null,null,null,null,null,null,null,null,null,null,null,null,null,null,null,null,null,null,null,null,null,null,null,null,null,null,null,null,null,null,null,null,null,null,null,null,null,null,null,null,null,null,null,null,null,null,null,null,null,null,null,null,null,null,null,null,null,null,null,null,null,null,null,null,null,null,null,null,null,null,null,null,null,null,null,null,null,null,null,null,null,null,null,null,null,null,null,null,null,null,null,null,null,null,null,null,null,null,null,null,null,null,null,null,null,null,null,null,null,null,null,null,null,null,null,null,null,null,null,null,null,null,null,null,null,null,null,null,null,null,null,null,null,null,null,null,null,null,null,null,null,null,null,null,null,null,null,null,null,null,null,null,null,null,null,null,null,null,null,null,null,null,null,null,null,null,null,null,null,null,null,null,null,null,null,null,null,null,null,null,null,null,"Frequently asked questions"]
[null,null,null,null," ","Sunday ","Monday ","Tuesday ","Wednesday ","Thursday ","Friday ","Saturday"]
[null,null,null,null,null,{"$f":"COLUMNS($F9:F9)+(ROWS(F$9:F9)-1)*7-$Z$23+$Z$22","v":{"$error":"#VALUE!"}},{"$f":"COLUMNS($F9:G9)+(ROWS(G$9:G9)-1)*7-$Z$23+$Z$22","v":{"$error":"#VALUE!"}},{"$f":"COLUMNS($F9:H9)+(ROWS(H$9:H9)-1)*7-$Z$23+$Z$22","v":{"$error":"#VALUE!"}},{"$f":"COLUMNS($F9:I9)+(ROWS(I$9:I9)-1)*7-$Z$23+$Z$22","v":{"$error":"#VALUE!"}},{"$f":"COLUMNS($F9:J9)+(ROWS(J$9:J9)-1)*7-$Z$23+$Z$22","v":{"$error":"#VALUE!"}},{"$f":"COLUMNS($F9:K9)+(ROWS(K$9:K9)-1)*7-$Z$23+$Z$22","v":{"$error":"#VALUE!"}},{"$f":"COLUMNS($F9:L9)+(ROWS(L$9:L9)-1)*7-$Z$23+$Z$22","v":{"$error":"#VALUE!"}},null,null,null,null,null,null,null,null,null,null,null,null,null,null,null,null,null,null,null,null,null,null,null,null,null,null,null,null,null,null,null,null,null,null,null,null,null,null,null,null,null,null,null,null,null,null,null,null,null,null,null,null,null,null,null,null,null,null,null,null,null,null,null,null,null,null,null,null,null,null,null,null,null,null,null,null,null,null,null,null,null,null,null,null,null,null,null,null,null,null,null,null,null,null,null,null,null,null,null,null,null,null,null,null,null,null,null,null,null,null,null,null,null,null,null,null,null,null,null,null,null,null,null,null,null,null,null,null,null,null,null,null,null,null,null,null,null,null,null,null,null,null,null,null,null,null,null,null,null,null,null,null,null,null,null,null,null,null,null,null,null,null,null,null,null,null,null,null,null,null,null,null,null,null,null,null,null,null,null,null,null,null,null,null,null,null,null,null,null,null,null,null,null,null,null,null,null,null,null,null,null,null,null,null,null,null,null,null,null,null,null,null,null,null,null,null,null,null,null,null,null,null,null,null,null,null,null,null,null,null,null,null,null,null,null,null,null,null,null,null,null,null,null,null,null,null,null,null,null,null,null,null,null,null,null,null,null,null,null,null,null,null,null,null,null,null,null,null,null,null,null,null,null,null,null,null,null,null,null,null,null,null,null,null,null,null,null,null,null,null,null,null,null,null,null,null,null,null,null,null,null,null,null,null,null,null,null,null,null,null,null,null,null,null,null,null,null,null,null,null,null,null,null,null,null,null,null,null,null,null,null,null,null,null,null,null,null,null,null,null,null,null,null,null,null,null,null,null,null,null,null,null,null,null,null,null,null,null,null,null,null,null,null,null,null,null,null,null,null,null,null,null,null,null,null,null,null,null,null,null,null,null,null,null,null,null,null,null,null,"Unpaid maternity leave & tax credits "]
[null,null,null,null,null,{"$f":"COLUMNS($F10:F10)+(ROWS(F$9:F10)-1)*7-$Z$23+$Z$22","v":{"$error":"#VALUE!"}},{"$f":"COLUMNS($F10:G10)+(ROWS(G$9:G10)-1)*7-$Z$23+$Z$22","v":{"$error":"#VALUE!"}},{"$f":"COLUMNS($F10:H10)+(ROWS(H$9:H10)-1)*7-$Z$23+$Z$22","v":{"$error":"#VALUE!"}},{"$f":"COLUMNS($F10:I10)+(ROWS(I$9:I10)-1)*7-$Z$23+$Z$22","v":{"$error":"#VALUE!"}},{"$f":"COLUMNS($F10:J10)+(ROWS(J$9:J10)-1)*7-$Z$23+$Z$22","v":{"$error":"#VALUE!"}},{"$f":"COLUMNS($F10:K10)+(ROWS(K$9:K10)-1)*7-$Z$23+$Z$22","v":{"$error":"#VALUE!"}},{"$f":"COLUMNS($F10:L10)+(ROWS(L$9:L10)-1)*7-$Z$23+$Z$22","v":{"$error":"#VALUE!"}}]
[null,null,null,null,null,{"$f":"COLUMNS($F11:F11)+(ROWS(F$9:F11)-1)*7-$Z$23+$Z$22","v":{"$error":"#VALUE!"}},{"$f":"COLUMNS($F11:G11)+(ROWS(G$9:G11)-1)*7-$Z$23+$Z$22","v":{"$error":"#VALUE!"}},{"$f":"COLUMNS($F11:H11)+(ROWS(H$9:H11)-1)*7-$Z$23+$Z$22","v":{"$error":"#VALUE!"}},{"$f":"COLUMNS($F11:I11)+(ROWS(I$9:I11)-1)*7-$Z$23+$Z$22","v":{"$error":"#VALUE!"}},{"$f":"COLUMNS($F11:J11)+(ROWS(J$9:J11)-1)*7-$Z$23+$Z$22","v":{"$error":"#VALUE!"}},{"$f":"COLUMNS($F11:K11)+(ROWS(K$9:K11)-1)*7-$Z$23+$Z$22","v":{"$error":"#VALUE!"}},{"$f":"COLUMNS($F11:L11)+(ROWS(L$9:L11)-1)*7-$Z$23+$Z$22","v":{"$error":"#VALUE!"}},null,null,null,null,null,null,null,null,null,null,null,null,null,null,null,null,null,null,null,null,null,null,null,null,null,null,null,null,null,null,null,null,null,null,null,null,null,null,null,null,null,null,null,null,null,null,null,null,null,null,null,null,null,null,null,null,null,null,null,null,null,null,null,null,null,null,null,null,null,null,null,null,null,null,null,null,null,null,null,null,null,null,null,null,null,null,null,null,null,null,null,null,null,null,null,null,null,null,null,null,null,null,null,null,null,null,null,null,null,null,null,null,null,null,null,null,null,null,null,null,null,null,null,null,null,null,null,null,null,null,null,null,null,null,null,null,null,null,null,null,null,null,null,null,null,null,null,null,null,null,null,null,null,null,null,null,null,null,null,null,null,null,null,null,null,null,null,null,null,null,null,null,null,null,null,null,null,null,null,null,null,null,null,null,null,null,null,null,null,null,null,null,null,null,null,null,null,null,null,null,null,null,null,null,null,null,null,null,null,null,null,null,null,null,null,null,null,null,null,null,null,null,null,null,null,null,null,null,null,null,null,null,null,null,null,null,null,null,null,null,null,null,null,null,null,null,null,null,null,null,null,null,null,null,null,null,null,null,null,null,null,null,null,null,null,null,null,null,null,null,null,null,null,null,null,null,null,null,null,null,null,null,null,null,null,null,null,null,null,null,null,null,null,null,null,null,null,null,null,null,null,null,null,null,null,null,null,null,null,null,null,null,null,null,null,null,null,null,null,null,null,null,null,null,null,null,null,null,null,null,null,null,null,null,null,null,null,null,null,null,null,null,null,null,null,null,null,null,null,null,null,null,null,null,null,null,null,null,null,null,null,null,null,null,null,null,null,null,null,null,null,null,null,null,null,null,null,null,null,null,null,null,null,null,null,null,null,null,null,"Maternity Leave Circular 0009/2013"]
[null,null,null,null,null,{"$f":"COLUMNS($F12:F12)+(ROWS(F$9:F12)-1)*7-$Z$23+$Z$22","v":{"$error":"#VALUE!"}},{"$f":"COLUMNS($F12:G12)+(ROWS(G$9:G12)-1)*7-$Z$23+$Z$22","v":{"$error":"#VALUE!"}},{"$f":"COLUMNS($F12:H12)+(ROWS(H$9:H12)-1)*7-$Z$23+$Z$22","v":{"$error":"#VALUE!"}},{"$f":"COLUMNS($F12:I12)+(ROWS(I$9:I12)-1)*7-$Z$23+$Z$22","v":{"$error":"#VALUE!"}},{"$f":"COLUMNS($F12:J12)+(ROWS(J$9:J12)-1)*7-$Z$23+$Z$22","v":{"$error":"#VALUE!"}},{"$f":"COLUMNS($F12:K12)+(ROWS(K$9:K12)-1)*7-$Z$23+$Z$22","v":{"$error":"#VALUE!"}},{"$f":"COLUMNS($F12:L12)+(ROWS(L$9:L12)-1)*7-$Z$23+$Z$22","v":{"$error":"#VALUE!"}},null,null,null,null,null,null,null,null,null,null,null,null,null,null,null,null,null,null,null,null,null,null,null,null,null,null,null,null,null,null,null,null,null,null,null,null,null,null,null,null,null,null,null,null,null,null,null,null,null,null,null,null,null,null,null,null,null,null,null,null,null,null,null,null,null,null,null,null,null,null,null,null,null,null,null,null,null,null,null,null,null,null,null,null,null,null,null,null,null,null,null,null,null,null,null,null,null,null,null,null,null,null,null,null,null,null,null,null,null,null,null,null,null,null,null,null,null,null,null,null,null,null,null,null,null,null,null,null,null,null,null,null,null,null,null,null,null,null,null,null,null,null,null,null,null,null,null,null,null,null,null,null,null,null,null,null,null,null,null,null,null,null,null,null,null,null,null,null,null,null,null,null,null,null,null,null,null,null,null,null,null,null,null,null,null,null,null,null,null,null,null,null,null,null,null,null,null,null,null,null,null,null,null,null,null,null,null,null,null,null,null,null,null,null,null,null,null,null,null,null,null,null,null,null,null,null,null,null,null,null,null,null,null,null,null,null,null,null,null,null,null,null,null,null,null,null,null,null,null,null,null,null,null,null,null,null,null,null,null,null,null,null,null,null,null,null,null,null,null,null,null,null,null,null,null,null,null,null,null,null,null,null,null,null,null,null,null,null,null,null,null,null,null,null,null,null,null,null,null,null,null,null,null,null,null,null,null,null,null,null,null,null,null,null,null,null,null,null,null,null,null,null,null,null,null,null,null,null,null,null,null,null,null,null,null,null,null,null,null,null,null,null,null,null,null,null,null,null,null,null,null,null,null,null,null,null,null,null,null,null,null,null,null,null,null,null,null,null,null,null,null,null,null,null,null,null,null,null,null,null,null,null,null,null,null,null,null,null,null,null,null,null,null,null,null,null," "]
[null,null,null,{"$f":"Sheet1!D43","v":{"$error":"#VALUE!"}},null,{"$f":"COLUMNS($F13:F13)+(ROWS(F$9:F13)-1)*7-$Z$23+$Z$22","v":{"$error":"#VALUE!"}},{"$f":"COLUMNS($F13:G13)+(ROWS(G$9:G13)-1)*7-$Z$23+$Z$22","v":{"$error":"#VALUE!"}},{"$f":"COLUMNS($F13:H13)+(ROWS(H$9:H13)-1)*7-$Z$23+$Z$22","v":{"$error":"#VALUE!"}},{"$f":"COLUMNS($F13:I13)+(ROWS(I$9:I13)-1)*7-$Z$23+$Z$22","v":{"$error":"#VALUE!"}},{"$f":"COLUMNS($F13:J13)+(ROWS(J$9:J13)-1)*7-$Z$23+$Z$22","v":{"$error":"#VALUE!"}},{"$f":"COLUMNS($F13:K13)+(ROWS(K$9:K13)-1)*7-$Z$23+$Z$22","v":{"$error":"#VALUE!"}},{"$f":"COLUMNS($F13:L13)+(ROWS(L$9:L13)-1)*7-$Z$23+$Z$22","v":{"$error":"#VALUE!"}}]
[null,null,null,null,null,{"$f":"COLUMNS($F14:F14)+(ROWS(F$9:F14)-1)*7-$Z$23+$Z$22","v":{"$error":"#VALUE!"}},{"$f":"COLUMNS($F14:G14)+(ROWS(G$9:G14)-1)*7-$Z$23+$Z$22","v":{"$error":"#VALUE!"}},{"$f":"COLUMNS($F14:H14)+(ROWS(H$9:H14)-1)*7-$Z$23+$Z$22","v":{"$error":"#VALUE!"}},{"$f":"COLUMNS($F14:I14)+(ROWS(I$9:I14)-1)*7-$Z$23+$Z$22","v":{"$error":"#VALUE!"}},{"$f":"COLUMNS($F14:J14)+(ROWS(J$9:J14)-1)*7-$Z$23+$Z$22","v":{"$error":"#VALUE!"}},{"$f":"COLUMNS($F14:K14)+(ROWS(K$9:K14)-1)*7-$Z$23+$Z$22","v":{"$error":"#VALUE!"}},{"$f":"COLUMNS($F14:L14)+(ROWS(L$9:L14)-1)*7-$Z$23+$Z$22","v":{"$error":"#VALUE!"}}]
[]
[null,null,null,null,{"$f":"(E6+112)","v":{"$error":"#VALUE!"}},"Date statutory unpaid maternity leave ends*"]
[null,null,null,null,null,{"$f":"(E16)","v":{"$error":"#VALUE!"}}]
[]
[null,null,null,null,null,"Sunday ","Monday ","Tuesday","Wednesday ","Thursday ","Friday ","Saturday "]
[null,null,null,null,null,{"$f":"COLUMNS($F20:F20)+(ROWS(F$20:F20)-1)*7-$D$32+$D$31","v":{"$error":"#VALUE!"}},{"$f":"COLUMNS($F20:G20)+(ROWS(G$20:G20)-1)*7-$D$32+$D$31","v":{"$error":"#VALUE!"}},{"$f":"COLUMNS($F20:H20)+(ROWS(H$20:H20)-1)*7-$D$32+$D$31","v":{"$error":"#VALUE!"}},{"$f":"COLUMNS($F20:I20)+(ROWS(I$20:I20)-1)*7-$D$32+$D$31","v":{"$error":"#VALUE!"}},{"$f":"COLUMNS($F20:J20)+(ROWS(J$20:J20)-1)*7-$D$32+$D$31","v":{"$error":"#VALUE!"}},{"$f":"COLUMNS($F20:K20)+(ROWS(K$20:K20)-1)*7-$D$32+$D$31","v":{"$error":"#VALUE!"}},{"$f":"COLUMNS($F20:L20)+(ROWS(L$20:L20)-1)*7-$D$32+$D$31","v":{"$error":"#VALUE!"}}]
[null,null,null,null,null,{"$f":"COLUMNS($F21:F21)+(ROWS(F$20:F21)-1)*7-$D$32+$D$31","v":{"$error":"#VALUE!"}},{"$f":"COLUMNS($F21:G21)+(ROWS(G$20:G21)-1)*7-$D$32+$D$31","v":{"$error":"#VALUE!"}},{"$f":"COLUMNS($F21:H21)+(ROWS(H$20:H21)-1)*7-$D$32+$D$31","v":{"$error":"#VALUE!"}},{"$f":"COLUMNS($F21:I21)+(ROWS(I$20:I21)-1)*7-$D$32+$D$31","v":{"$error":"#VALUE!"}},{"$f":"COLUMNS($F21:J21)+(ROWS(J$20:J21)-1)*7-$D$32+$D$31","v":{"$error":"#VALUE!"}},{"$f":"COLUMNS($F21:K21)+(ROWS(K$20:K21)-1)*7-$D$32+$D$31","v":{"$error":"#VALUE!"}},{"$f":"COLUMNS($F21:L21)+(ROWS(L$20:L21)-1)*7-$D$32+$D$31","v":{"$error":"#VALUE!"}},null,null,null,null,null,null,null,null,null,null,null,null,"Date",{"$f":"(E6)","v":{"$error":"#VALUE!"}}]
[null,null,null,null,null,{"$f":"COLUMNS($F22:F22)+(ROWS(F$20:F22)-1)*7-$D$32+$D$31","v":{"$error":"#VALUE!"}},{"$f":"COLUMNS($F22:G22)+(ROWS(G$20:G22)-1)*7-$D$32+$D$31","v":{"$error":"#VALUE!"}},{"$f":"COLUMNS($F22:H22)+(ROWS(H$20:H22)-1)*7-$D$32+$D$31","v":{"$error":"#VALUE!"}},{"$f":"COLUMNS($F22:I22)+(ROWS(I$20:I22)-1)*7-$D$32+$D$31","v":{"$error":"#VALUE!"}},{"$f":"COLUMNS($F22:J22)+(ROWS(J$20:J22)-1)*7-$D$32+$D$31","v":{"$error":"#VALUE!"}},{"$f":"COLUMNS($F22:K22)+(ROWS(K$20:K22)-1)*7-$D$32+$D$31","v":{"$error":"#VALUE!"}},{"$f":"COLUMNS($F22:L22)+(ROWS(L$20:L22)-1)*7-$D$32+$D$31","v":{"$error":"#VALUE!"}},null,null,null,null,null,null,null,null,null,null,null,null,"First ",{"$f":"EOMONTH(Z21,-1)+1","v":{"$error":"#VALUE!"}}]
[null,null,null,null,null,{"$f":"COLUMNS($F23:F23)+(ROWS(F$20:F23)-1)*7-$D$32+$D$31","v":{"$error":"#VALUE!"}},{"$f":"COLUMNS($F23:G23)+(ROWS(G$20:G23)-1)*7-$D$32+$D$31","v":{"$error":"#VALUE!"}},{"$f":"COLUMNS($F23:H23)+(ROWS(H$20:H23)-1)*7-$D$32+$D$31","v":{"$error":"#VALUE!"}},{"$f":"COLUMNS($F23:I23)+(ROWS(I$20:I23)-1)*7-$D$32+$D$31","v":{"$error":"#VALUE!"}},{"$f":"COLUMNS($F23:J23)+(ROWS(J$20:J23)-1)*7-$D$32+$D$31","v":{"$error":"#VALUE!"}},{"$f":"COLUMNS($F23:K23)+(ROWS(K$20:K23)-1)*7-$D$32+$D$31","v":{"$error":"#VALUE!"}},{"$f":"COLUMNS($F23:L23)+(ROWS(L$20:L23)-1)*7-$D$32+$D$31","v":{"$error":"#VALUE!"}},null,null,null,null,null,null,null,null,null,null,null,null,"Weekday of first",{"$f":"WEEKDAY(Z22)","v":{"$error":"#VALUE!"}}]
[null,null,null,null,null,{"$f":"COLUMNS($F24:F24)+(ROWS(F$20:F24)-1)*7-$D$32+$D$31","v":{"$error":"#VALUE!"}},{"$f":"COLUMNS($F24:G24)+(ROWS(G$20:G24)-1)*7-$D$32+$D$31","v":{"$error":"#VALUE!"}},{"$f":"COLUMNS($F24:H24)+(ROWS(H$20:H24)-1)*7-$D$32+$D$31","v":{"$error":"#VALUE!"}},{"$f":"COLUMNS($F24:I24)+(ROWS(I$20:I24)-1)*7-$D$32+$D$31","v":{"$error":"#VALUE!"}},{"$f":"COLUMNS($F24:J24)+(ROWS(J$20:J24)-1)*7-$D$32+$D$31","v":{"$error":"#VALUE!"}},{"$f":"COLUMNS($F24:K24)+(ROWS(K$20:K24)-1)*7-$D$32+$D$31","v":{"$error":"#VALUE!"}},{"$f":"COLUMNS($F24:L24)+(ROWS(L$20:L24)-1)*7-$D$32+$D$31","v":{"$error":"#VALUE!"}},null,null,null,null,null,null,null,null,null,null,null,null,"month",{"$f":"MONTH(Z22)","v":{"$error":"#VALUE!"}}]
[null,null,null,null,null,{"$f":"COLUMNS($F25:F25)+(ROWS(F$20:F25)-1)*7-$D$32+$D$31","v":{"$error":"#VALUE!"}},{"$f":"COLUMNS($F25:G25)+(ROWS(G$20:G25)-1)*7-$D$32+$D$31","v":{"$error":"#VALUE!"}},{"$f":"COLUMNS($F25:H25)+(ROWS(H$20:H25)-1)*7-$D$32+$D$31","v":{"$error":"#VALUE!"}},{"$f":"COLUMNS($F25:I25)+(ROWS(I$20:I25)-1)*7-$D$32+$D$31","v":{"$error":"#VALUE!"}},{"$f":"COLUMNS($F25:J25)+(ROWS(J$20:J25)-1)*7-$D$32+$D$31","v":{"$error":"#VALUE!"}},{"$f":"COLUMNS($F25:K25)+(ROWS(K$20:K25)-1)*7-$D$32+$D$31","v":{"$error":"#VALUE!"}},{"$f":"COLUMNS($F25:L25)+(ROWS(L$20:L25)-1)*7-$D$32+$D$31","v":{"$error":"#VALUE!"}}]
[null,null,null,"    *Optional unpaid leave of up to 112 days taken after maternity leave, calendar indicates latest possible end date."]
[]
[]
[]
[null,"date",null,"2012-02-02"]
[null,"First ",null,{"$f":"EOMONTH(E16,-1)+1","v":{"$error":"#VALUE!"}}]
[null,"Weekday",null,{"$f":"WEEKDAY(D31)","v":{"$error":"#VALUE!"}}]
[null,"month",null,{"$f":"MONTH(D31)","v":{"$error":"#VALUE!"}}]
[]
[null,null,null,null,null,null,null,null,"DATE"]
[null,null,null,null,null,null,null,null,"FIRST"]
[null,null,null,null,null,null,null,null,"WEEKDAY"]
[null,null,null,null,null,null,null,null,"MONTH"]
[]
[]
[]
[]
[]
[]
[]
[]
[]
[]
[]
[]
[]
[]
[]
[]
[]
[]
[]
[]
[]
[]
[]
[]
[]
[]
[]
[null,null,null,null,null,null,null,null,null,null,null,null,null,null,null,null,null,null,null,null,null,null,null,null,null,null,null,null,null,null,null,null,null,null,null,null,null,null,null,null,null,null,null,null,null,null,null,null,null,null,null,null,null,null,null,null,null,null,null,null,null,null,null,null,null,null,null,null,null,null,null,null,null,null,null,null,null,null,null,null,null,null,null,null,null,null,null,null,null,null,null,null,null,null,null,null,null,null,null,null,null,null,null,null,null,null,null,null,null,null,null,null,null,null,null,null,null,null,null,null,null,null,null,null,null,null,null,null,null,null,null,null,null,null,null,null,null,null,null,null,null,null,null,null,null,null,null,null,null,null,null,null,null,null,null,null,null,null,null,null,null,null,null,null,null,null,null,null,null,null,null,null,null,null,null,null,null,null,null,null,null,null,null,null,null,null,null,null,null,null,null,null,null,null,null,null,null,null,null,null,null,null,null,null,null,null,null,null,null,null,null,null,null,null,null,null,null,null,null,null,null,null,null,null,null,null,null,null,null,null,null,null,null,null,null,null,null,null,null,null,null,null,null,null,null,null,null,null,null,null,null,null,null,null,null,null,null,null,null,null,null,null,null,null,null,null,null,null,null,null,null,null,null,null,null,null,null,null,null,null,null,null,null,null,null,null,null,null,null,null,null,null,null,null,null,null,null,null,null,null,null,null,null,null,null,null,null,null,null,null,null,null,null,null,null,null,null,null,null,null,null,null,null,null,null,null,null,null,null,null,null,null,null,null,null,null,null,null,null,null,null,null,null,null,null,null,null,null,null,null,null,null,null,null,null,null,null,null,null,null,null,null,null,null,null,null,null,null,null,null,null,null,null,null,null,null,null,null,null,null,null,null,null,null,null,null,null,null,null,null,null,null,null,null,null,null,null,null,null,null,null,null,{"$f":"(ADY79+181)","v":"1900-06-29"}]
[]
[]
[null,null,null,null,null,null,null,null,null,null,null,null,null,null,null,null,null,null,null,null,null,null,null,null,null,null,null,null,null,null,null,null,null,null,null,null,null,null,null,null,null,null,null,null,null,null,null,null,null,null,null,null,null,null,null,null,null,null,null,null,null,null,null,null,null,null,null,null,null,null,null,null,null,null,null,null,null,null,null,null,null,null,null,null,null,null,null,null,null,null,null,null,null,null,null,null,null,null,null,null,null,null,null,null,null,null,null,null,null,null,null,null,null,null,null,null,null,null,null,null,null,null,null,null,null,null,null,null,null,null,null,null,null,null,null,null,null,null,null,null,null,null,null,null,null,null,null,null,null,null,null,null,null,null,null,null,null,null,null,null,null,null,null,null,null,null,null,null,null,null,null,null,null,null,null,null,null,null,null,null,null,null,null,null,null,null,null,null,null,null,null,null,null,null,null,null,null,null,null,null,null,null,null,null,null,null,null,null,null,null,null,null,null,null,null,null,null,null,null,null,null,null,null,null,null,null,null,null,null,null,null,null,null,null,null,null,null,null,null,null,null,null,null,null,null,null,null,null,null,null,null,null,null,null,null,null,null,null,null,null,null,null,null,null,null,null,null,null,null,null,null,null,null,null,null,null,null,null,null,null,null,null,null,null,null,null,null,null,null,null,null,null,null,null,null,null,null,null,null,null,null,null,null,null,null,null,null,null,null,null,null,null,null,null,null,null,null,null,null,null,null,null,null,null,null,null,null,null,null,null,null,null,null,null,null,null,null,null,null,null,null,null,null,null,null,null,null,null,null,null,null,null,null,null,null,null,null,null,null,null,null,null,null,null,null,null,null,null,null,null,null,null,null,null,null,null,null,null,null,null,null,null,null,null,null,null,null,null,null,null,null,null,null,null,null,null,null,null,null,null,null,null,null,null,null,null,null,null,null,null,null,null,null,null,null,null,"date ","2015-01-18"]
[null,null,null,null,null,null,null,null,null,null,null,null,null,null,null,null,null,null,null,null,null,null,null,null,null,null,null,null,null,null,null,null,null,null,null,null,null,null,null,null,null,null,null,null,null,null,null,null,null,null,null,null,null,null,null,null,null,null,null,null,null,null,null,null,null,null,null,null,null,null,null,null,null,null,null,null,null,null,null,null,null,null,null,null,null,null,null,null,null,null,null,null,null,null,null,null,null,null,null,null,null,null,null,null,null,null,null,null,null,null,null,null,null,null,null,null,null,null,null,null,null,null,null,null,null,null,null,null,null,null,null,null,null,null,null,null,null,null,null,null,null,null,null,null,null,null,null,null,null,null,null,null,null,null,null,null,null,null,null,null,null,null,null,null,null,null,null,null,null,null,null,null,null,null,null,null,null,null,null,null,null,null,null,null,null,null,null,null,null,null,null,null,null,null,null,null,null,null,null,null,null,null,null,null,null,null,null,null,null,null,null,null,null,null,null,null,null,null,null,null,null,null,null,null,null,null,null,null,null,null,null,null,null,null,null,null,null,null,null,null,null,null,null,null,null,null,null,null,null,null,null,null,null,null,null,null,null,null,null,null,null,null,null,null,null,null,null,null,null,null,null,null,null,null,null,null,null,null,null,null,null,null,null,null,null,null,null,null,null,null,null,null,null,null,null,null,null,null,null,null,null,null,null,null,null,null,null,null,null,null,null,null,null,null,null,null,null,null,null,null,null,null,null,null,null,null,null,null,null,null,null,null,null,null,null,null,null,null,null,null,null,null,null,null,null,null,null,null,null,null,null,null,null,null,null,null,null,null,null,null,null,null,null,null,null,null,null,null,null,null,null,null,null,null,null,null,null,null,null,null,null,null,null,null,null,null,null,null,null,null,null,null,null,null,null,null,null,null,null,null,null,null,null,null,null,null,null,null,null,null,null,null,null,null,null,null,"first ",{"$f":"EOMONTH(OQ19,-1)+1","v":{"$error":"#NUM!"}}]
[null,null,null,null,null,null,null,null,null,null,null,null,null,null,null,null,null,null,null,null,null,null,null,null,null,null,null,null,null,null,null,null,null,null,null,null,null,null,null,null,null,null,null,null,null,null,null,null,null,null,null,null,null,null,null,null,null,null,null,null,null,null,null,null,null,null,null,null,null,null,null,null,null,null,null,null,null,null,null,null,null,null,null,null,null,null,null,null,null,null,null,null,null,null,null,null,null,null,null,null,null,null,null,null,null,null,null,null,null,null,null,null,null,null,null,null,null,null,null,null,null,null,null,null,null,null,null,null,null,null,null,null,null,null,null,null,null,null,null,null,null,null,null,null,null,null,null,null,null,null,null,null,null,null,null,null,null,null,null,null,null,null,null,null,null,null,null,null,null,null,null,null,null,null,null,null,null,null,null,null,null,null,null,null,null,null,null,null,null,null,null,null,null,null,null,null,null,null,null,null,null,null,null,null,null,null,null,null,null,null,null,null,null,null,null,null,null,null,null,null,null,null,null,null,null,null,null,null,null,null,null,null,null,null,null,null,null,null,null,null,null,null,null,null,null,null,null,null,null,null,null,null,null,null,null,null,null,null,null,null,null,null,null,null,null,null,null,null,null,null,null,null,null,null,null,null,null,null,null,null,null,null,null,null,null,null,null,null,null,null,null,null,null,null,null,null,null,null,null,null,null,null,null,null,null,null,null,null,null,null,null,null,null,null,null,null,null,null,null,null,null,null,null,null,null,null,null,null,null,null,null,null,null,null,null,null,null,null,null,null,null,null,null,null,null,null,null,null,null,null,null,null,null,null,null,null,null,null,null,null,null,null,null,null,null,null,null,null,null,null,null,null,null,null,null,null,null,null,null,null,null,null,null,null,null,null,null,null,null,null,null,null,null,null,null,null,null,null,null,null,null,null,null,null,null,null,null,null,null,null,null,null,null,null,null,null,"weekday first ",{"$f":"WEEKDAY(PB70)","v":{"$error":"#NUM!"}},"month ",{"$f":"MONTH(OQ19)","v":1}]
[]
[]
[]
[]
[null,null,null,null,null,null,null,null,null,null,null,null,null,null,null,null,null,null,null,null,null,null,null,null,null,null,null,null,null,null,null,null,null,null,null,null,null,null,null,null,null,null,null,null,null,null,null,null,null,null,null,null,null,null,null,null,null,null,null,null,null,null,null,null,null,null,null,null,null,null,null,null,null,null,null,null,null,null,null,null,null,null,null,null,null,null,null,null,null,null,null,null,null,null,null,null,null,null,null,null,null,null,null,null,null,null,null,null,null,null,null,null,null,null,null,null,null,null,null,null,null,null,null,null,null,null,null,null,null,null,null,null,null,null,null,null,null,null,null,null,null,null,null,null,null,null,null,null,null,null,null,null,null,null,null,null,null,null,null,null,null,null,null,null,null,null,null,null,null,null,null,null,null,null,null,null,null,null,null,null,null,null,null,null,null,null,null,null,null,null,null,null,null,null,null,null,null,null,null,null,null,null,null,null,null,null,null,null,null,null,null,null,null,null,null,null,null,null,null,null,null,null,null,null,null,null,null,null,null,null,null,null,null,null,null,null,null,null,null,null,null,null,null,null,null,null,null,null,null,null,null,null,null,null,null,null,null,null,null,null,null,null,null,null,null,null,null,null,null,null,null,null,null,null,null,null,null,null,null,null,null,null,null,null,null,null,null,null,null,null,null,null,null,null,null,null,null,null,null,null,null,null,null,null,null,null,null,null,null,null,null,null,null,null,null,null,null,null,null,null,null,null,null,null,null,null,null,null,null,null,null,null,null,null,null,null,null,null,null,null,null,null,null,null,null,null,null,null,null,null,null,null,null,null,null,null,null,null,null,null,null,null,null,null,null,null,null,null,null,null,null,null,null,null,null,null,null,null,null,null,null,null,null,null,null,null,null,null,null,null,null,null,null,null,null,null,null,null,null,null,null,null,{"$f":"(OM66+112)","v":"1900-10-19"}]

{"sheet":"Sheet3","index":3,"n_rows":0,"n_cols":0,"rows_kept":0,"cut":false,"hidden":true,"merged":[[19,6,19,12]]}